bitfinex-derivatives/quotes_BNBF0:USTF0_20250220
["timestamp","ask_amount","ask_price","bid_price","bid_amount"]
[1740010351847,1.09883567,651.71,650.3,0.30755036]
[1740010352147,1.09883567,651.7,650.3,0.30755036]
[1740010352351,1.09883567,651.69,650.3,0.30755036]
[1740010352650,1.09883567,651.68,650.3,0.30755036]
[1740010352849,1.09883567,651.67,650.3,0.30755036]
[1740010353051,1.09883567,651.66,650.3,0.30755036]
[1740010353253,1.09883567,651.65,650.3,0.30755036]
[1740010353452,1.09871456,651.64,650.3,0.30755036]
[1740010353654,1.09871456,651.63,650.3,0.30755036]
[1740010353852,0.30687083,651.74,650.3,0.30755036]
[1740010353853,1.09871456,651.62,650.3,0.30755036]
[1740010354048,1.09871456,651.61,650.3,0.30755036]
[1740010354251,1.09871456,651.6,650.3,0.30755036]
[1740010354447,1.09871456,651.59,650.3,0.30755036]
[1740010354652,1.09871456,651.58,650.3,0.30755036]
[1740010354850,1.09871456,651.57,650.3,0.30755036]
[1740010355055,1.09871456,651.56,650.3,0.30755036]
[1740010355255,1.09871456,651.55,650.3,0.30755036]
[1740010355453,1.09871456,651.54,650.3,0.30755036]
[1740010355651,1.09871456,651.53,650.3,0.30755036]
[1740010355851,1.09871456,651.52,650.3,0.30755036]
[1740010356051,1.09871456,651.51,650.3,0.30755036]
[1740010356256,1.09871456,651.5,650.3,0.30755036]
[1740010356452,1.09871456,651.49,650.3,0.30755036]
[1740010356652,1.09871456,651.48,650.3,0.30755036]
[1740010356856,1.09871456,651.47,650.3,0.30755036]
[1740010357056,1.09871456,651.46,650.3,0.30755036]
[1740010357253,1.09871456,651.45,650.3,0.30755036]
[1740010357458,1.09871456,651.44,650.3,0.30755036]
[1740010357757,1.09871456,651.43,650.3,0.30755036]
[1740010357957,1.09871456,651.42,650.3,0.30755036]
[1740010358155,0.30687083,651.74,650.3,0.30755036]
[1740010358457,1.09846374,651.73,650.3,0.30755036]
[1740010358660,1.09846374,651.72,650.3,0.30755036]
[1740010358855,1.09846374,651.71,650.3,0.30755036]
[1740010359056,1.09846374,651.7,650.3,0.30755036]
[1740010359260,1.09846374,651.69,650.3,0.30755036]
[1740010359460,1.09846374,651.68,650.3,0.30755036]
[1740010359658,1.09858508,651.67,650.3,0.30755036]
[1740010359862,1.09858508,651.66,650.3,0.30755036]
[1740010360163,1.09257929,651.65,650.3,0.30755036]
[1740010360365,0.30687083,651.74,650.3,0.30755036]
[1740010361262,0.28212937,651.73,650.3,0.30755036]
[1740010362263,0.28212669,651.72,650.3,0.30755036]
[1740010362562,0.30687083,651.74,650.3,0.30755036]
[1740010372162,1.09903872,651.73,650.3,0.30755036]
[1740010372365,1.09903872,651.72,650.3,0.30755036]
[1740010372567,1.09903872,651.71,650.3,0.30755036]
[1740010372767,1.09903872,651.7,650.3,0.30755036]
[1740010372965,1.09903872,651.69,650.3,0.30755036]
[1740010373269,1.09903872,651.68,650.3,0.30755036]
[1740010373468,1.09903872,651.67,650.3,0.30755036]
[1740010373669,1.09903872,651.66,650.3,0.30755036]
[1740010373970,1.09903872,651.65,650.3,0.30755036]
[1740010374169,1.09903872,651.64,650.3,0.30755036]
[1740010374368,1.09903872,651.63,650.3,0.30755036]
[1740010374569,1.09903872,651.62,650.3,0.30755036]
[1740010374865,1.09903872,651.61,650.3,0.30755036]
[1740010375064,1.09903872,651.6,650.3,0.30755036]
[1740010375269,1.09903872,651.59,650.3,0.30755036]
[1740010375468,1.09903872,651.58,650.3,0.30755036]
[1740010375666,1.09903872,651.57,650.3,0.30755036]
[1740010375865,1.09903872,651.56,650.3,0.30755036]
[1740010376065,1.09946105,651.55,650.3,0.30755036]
[1740010376271,1.09946105,651.54,650.3,0.30755036]
[1740010376570,0.30687083,651.74,650.3,0.30755036]
[1740010376571,1.09946105,651.53,650.3,0.30755036]
[1740010376771,1.09946105,651.52,650.3,0.30755036]
[1740010376972,1.09946105,651.51,650.3,0.30755036]
[1740010377172,1.09946105,651.5,650.3,0.30755036]
[1740010377364,1.09946105,651.49,650.3,0.30755036]
[1740010377566,1.09946105,651.48,650.3,0.30755036]
[1740010377870,1.09946105,651.47,650.3,0.30755036]
[1740010378065,1.0990045,651.46,650.3,0.30755036]
[1740010378367,1.0990045,651.45,650.3,0.30755036]
[1740010378566,1.0990045,651.44,650.3,0.30755036]
[1740010378867,0.30687083,651.74,650.3,0.30755036]
[1740010378868,1.0990045,651.43,650.3,0.30755036]
[1740010379072,1.0990045,651.42,650.3,0.30755036]
[1740010379273,1.0990045,651.41,650.3,0.30755036]
[1740010379471,1.0990045,651.4,650.3,0.30755036]
[1740010379668,1.0990045,651.39,650.3,0.30755036]
[1740010379869,1.0990045,651.38,650.3,0.30755036]
[1740010380074,1.0990045,651.37,650.3,0.30755036]
[1740010380273,1.0990045,651.36,650.3,0.30755036]
[1740010380476,1.0990045,651.35,650.3,0.30755036]
[1740010380672,1.0990045,651.34,650.3,0.30755036]
[1740010380871,1.0990045,651.33,650.3,0.30755036]
[1740010381068,1.0990045,651.32,650.3,0.30755036]
[1740010381267,0.30687083,651.74,650.3,0.30755036]
[1740010381268,1.0990045,651.31,650.3,0.30755036]
[1740010381473,1.0990045,651.3,650.3,0.30755036]
[1740010381676,1.0990045,651.29,650.3,0.30755036]
[1740010381971,1.0990045,651.28,650.3,0.30755036]
[1740010382175,1.0990045,651.27,650.3,0.30755036]
[1740010382376,1.0990045,651.26,650.3,0.30755036]
[1740010382570,1.0990045,651.25,650.3,0.30755036]
[1740010382770,1.0978523,651.24,650.3,0.30755036]
[1740010382969,1.09785599,651.23,650.3,0.30755036]
[1740010383172,1.09787378,651.22,650.3,0.30755036]
[1740010383374,1.09777756,651.21,650.3,0.30755036]
[1740010383668,1.09778141,651.2,650.3,0.30755036]
[1740010383873,0.30687083,651.74,650.3,0.30755036]
[1740010384068,0.28222662,651.73,650.3,0.30755036]
[1740010384271,0.30688496,651.71,650.3,0.30755036]
[1740010384476,1.38008056,651.7,650.3,0.30755036]
[1740010384672,0.30689909,651.68,650.3,0.30755036]
[1740010384876,1.38008056,651.67,650.3,0.30755036]
[1740010385075,0.30691322,651.65,650.3,0.30755036]
[1740010385376,1.38008056,651.64,650.3,0.30755036]
[1740010385576,0.30692735,651.62,650.3,0.30755036]
[1740010385776,1.38008056,651.61,650.3,0.30755036]
[1740010386074,0.30694148,651.59,650.3,0.30755036]
[1740010386271,1.38008056,651.58,650.3,0.30755036]
[1740010386479,1.68703146,651.57,650.3,0.30755036]
[1740010386682,1.68703617,651.56,650.3,0.30755036]
[1740010386874,1.68704088,651.55,650.3,0.30755036]
[1740010387081,1.68704559,651.54,650.3,0.30755036]
[1740010387382,1.6870503,651.53,650.3,0.30755036]
[1740010387580,1.38008056,651.52,650.3,0.30755036]
[1740010387781,1.38008056,651.51,650.3,0.30755036]
[1740010387976,1.38008056,651.5,650.3,0.30755036]
[1740010388177,1.68706915,651.49,650.3,0.30755036]
[1740010388381,1.68707386,651.48,650.3,0.30755036]
[1740010388583,1.38008056,651.47,650.3,0.30755036]
[1740010388778,1.38008056,651.46,650.3,0.30755036]
[1740010388980,1.38008056,651.45,650.3,0.30755036]
[1740010389277,1.38008056,651.44,650.3,0.30755036]
[1740010389479,1.38008056,651.43,650.3,0.30755036]
[1740010389780,1.09785394,651.42,650.3,0.30755036]
[1740010389984,1.09785394,651.41,650.3,0.30755036]
[1740010390278,1.09663147,651.4,650.3,0.30755036]
[1740010390483,1.09663147,651.39,650.3,0.30755036]
[1740010390785,1.09663147,651.38,650.3,0.30755036]
[1740010391083,1.09663147,651.37,650.3,0.30755036]
[1740010391284,1.09663147,651.36,650.3,0.30755036]
[1740010391484,1.09663147,651.35,650.3,0.30755036]
[1740010391785,1.09663147,651.34,650.3,0.30755036]
[1740010391987,1.09663147,651.33,650.3,0.30755036]
[1740010392187,1.09663147,651.32,650.3,0.30755036]
[1740010392387,1.09663147,651.31,650.3,0.30755036]
[1740010392687,1.09663147,651.3,650.3,0.30755036]
[1740010392987,1.09663147,651.29,650.3,0.30755036]
[1740010393186,1.09663147,651.28,650.3,0.30755036]
[1740010393388,1.09663147,651.27,650.3,0.30755036]
[1740010393686,1.09663147,651.26,650.3,0.30755036]
[1740010393889,1.09663147,651.25,650.3,0.30755036]
[1740010394181,1.09663147,651.24,650.3,0.30755036]
[1740010394387,1.09724394,651.23,650.3,0.30755036]
[1740010394588,1.09724394,651.22,650.3,0.30755036]
[1740010394788,1.09724394,651.21,650.3,0.30755036]
[1740010394984,1.09724394,651.2,650.3,0.30755036]
[1740010395192,1.09724394,651.19,650.3,0.30755036]
[1740010395383,1.09724394,651.18,650.3,0.30755036]
[1740010395588,0.3069933,651.48,650.3,0.30755036]
[1740010395889,1.37969039,651.47,650.3,0.30755036]
[1740010396090,1.37969039,651.46,650.3,0.30755036]
[1740010396289,1.37969039,651.45,650.3,0.30755036]
[1740010396489,1.09744878,651.44,650.3,0.30755036]
[1740010396785,1.09744878,651.43,650.3,0.30755036]
[1740010396990,1.09744878,651.42,650.3,0.30755036]
[1740010397190,1.09744878,651.41,650.3,0.30755036]
[1740010397490,1.09744878,651.4,650.3,0.30755036]
[1740010397684,1.09744878,651.39,650.3,0.30755036]
[1740010397885,1.09744878,651.38,650.3,0.30755036]
[1740010398088,1.09744878,651.37,650.3,0.30755036]
[1740010398285,1.09744878,651.36,650.3,0.30755036]
[1740010398493,1.09762773,651.35,650.3,0.30755036]
[1740010398691,1.09762773,651.34,650.3,0.30755036]
[1740010398986,0.3069933,651.48,650.3,0.30755036]
[1740010399689,1.09770378,651.47,650.3,0.30755036]
[1740010399891,1.09770378,651.46,650.3,0.30755036]
[1740010400089,1.09770378,651.45,650.3,0.30755036]
[1740010400289,1.09770378,651.44,650.3,0.30755036]
[1740010400489,1.09770378,651.43,650.3,0.30755036]
[1740010400690,1.09770378,651.42,650.3,0.30755036]
[1740010400888,1.09770378,651.41,650.3,0.30755036]
[1740010401092,1.09770378,651.4,650.3,0.30755036]
[1740010401292,1.09770378,651.39,650.3,0.30755036]
[1740010401493,1.09770378,651.38,650.3,0.30755036]
[1740010401693,1.09770378,651.37,650.3,0.30755036]
[1740010401994,1.09770378,651.36,650.3,0.30755036]
[1740010402193,1.09770378,651.35,650.3,0.30755036]
[1740010402389,1.09770378,651.34,650.3,0.30755036]
[1740010402590,1.09770378,651.33,650.3,0.30755036]
[1740010402790,1.09770378,651.32,650.3,0.30755036]
[1740010402993,1.09770378,651.31,650.3,0.30755036]
[1740010403290,1.09770378,651.3,650.3,0.30755036]
[1740010403489,1.09770378,651.29,650.3,0.30755036]
[1740010403694,1.09770378,651.28,650.3,0.30755036]
[1740010403893,1.09770378,651.27,650.3,0.30755036]
[1740010404094,1.09770378,651.26,650.3,0.30755036]
[1740010404394,1.09770378,651.25,650.3,0.30755036]
[1740010404595,1.09770378,651.24,650.3,0.30755036]
[1740010404794,0.3069933,651.48,650.3,0.30755036]
[1740010404795,1.09770378,651.23,650.3,0.30755036]
[1740010404996,1.09770378,651.22,650.3,0.30755036]
[1740010405196,1.09770378,651.21,650.3,0.30755036]
[1740010405396,1.09770378,651.2,650.3,0.30755036]
[1740010405595,1.09770378,651.19,650.3,0.30755036]
[1740010405794,1.09770378,651.18,650.3,0.30755036]
[1740010405997,1.09770378,651.17,650.3,0.30755036]
[1740010406193,0.3069933,651.48,650.3,0.30755036]
[1740010406194,1.09770378,651.16,650.3,0.30755036]
[1740010406397,1.09770378,651.15,650.3,0.30755036]
[1740010406597,1.09770378,651.14,650.3,0.30755036]
[1740010406797,1.09770378,651.13,650.3,0.30755036]
[1740010406996,1.09770378,651.12,650.3,0.30755036]
[1740010407195,1.09770378,651.11,650.3,0.30755036]
[1740010407392,1.09770378,651.1,650.3,0.30755036]
[1740010407698,1.09770378,651.09,650.3,0.30755036]
[1740010407897,1.09770378,651.08,650.3,0.30755036]
[1740010408099,1.09770378,651.07,650.3,0.30755036]
[1740010408299,0.3069933,651.48,650.3,0.30755036]
[1740010408300,1.09770378,651.06,650.3,0.30755036]
[1740010408594,1.09770378,651.05,650.3,0.30755036]
[1740010408798,0.3069933,651.48,650.3,0.30755036]
[1740010408999,1.37917024,651.47,650.3,0.30755036]
[1740010409299,1.68617297,651.46,650.3,0.30755036]
[1740010409499,1.68617768,651.45,650.3,0.30755036]
[1740010409699,1.37917024,651.44,650.3,0.30755036]
[1740010409896,1.37917024,651.43,650.3,0.30755036]
[1740010410094,1.37917024,651.42,649.53,1.3565794]
[1740010410393,0.30703101,651.4,649.55,0.30790547]
[1740010410596,1.37917024,651.39,649.55,0.30790547]
[1740010410800,0.30704515,651.37,649.55,0.30790547]
[1740010410999,1.37917024,651.36,649.55,0.30790547]
[1740010411196,1.37917024,651.35,649.55,0.30790547]
[1740010411495,1.37930864,651.34,649.55,0.30790547]
[1740010411696,1.37930864,651.33,649.55,0.30790547]
[1740010411897,1.37930864,651.32,649.55,0.30790547]
[1740010412100,1.37930864,651.31,649.55,0.30790547]
[1740010412296,0.30708286,651.29,649.55,0.30790547]
[1740010412601,1.37930864,651.28,649.55,0.30790547]
[1740010412803,0.30709701,651.26,649.55,0.30790547]
[1740010413100,1.09516335,651.25,649.55,0.30790547]
[1740010413297,1.6846696,651.24,649.55,0.30790547]
[1740010413599,0.74501047,651.71,649.55,0.30790547]
[1740010413600,1.68467431,651.23,649.55,0.30790547]
[1740010413799,1.68467903,651.22,649.55,0.30790547]
[1740010413995,1.68468375,651.21,649.55,0.30790547]
[1740010414195,1.68468846,651.2,649.55,0.30790547]
[1740010414402,1.37756316,651.19,649.55,0.30790547]
[1740010414594,1.6846979,651.18,649.55,0.30790547]
[1740010414797,1.4023028,651.17,649.55,0.30790547]
[1740010415102,1.68472888,651.16,649.55,0.30790547]
[1740010415297,1.6847336,651.15,649.55,0.30790547]
[1740010415501,1.68473831,651.14,649.55,0.30790547]
[1740010415700,1.68474303,651.13,649.55,0.30790547]
[1740010415900,1.68474775,651.12,649.55,0.30790547]
[1740010416100,1.37758471,651.11,649.55,0.30790547]
[1740010416301,1.37758471,651.1,649.55,0.30790547]
[1740010416503,1.37758471,651.09,649.55,0.30790547]
[1740010416697,1.37758471,651.08,649.55,0.30790547]
[1740010416897,1.37758471,651.07,649.55,0.30790547]
[1740010417103,1.37758471,651.06,649.55,0.30790547]
[1740010417298,1.37758471,651.05,649.55,0.30790547]
[1740010417497,1.37758471,651.04,649.55,0.30790547]
[1740010417703,1.37758471,651.03,649.55,0.30790547]
[1740010417899,1.37758471,651.02,649.55,0.30790547]
[1740010418097,0.30716304,651.12,649.55,0.30790547]
[1740010418098,1.09516335,651.01,649.55,0.30790547]
[1740010418403,1.37765648,651.0,649.55,0.30790547]
[1740010418604,1.37765648,650.99,649.55,0.30790547]
[1740010418803,1.68488558,650.98,649.55,0.30790547]
[1740010419004,1.68278321,650.97,649.55,0.30790547]
[1740010419204,1.37554939,650.96,649.55,0.30790547]
[1740010419405,1.68279264,650.95,649.55,0.30790547]
[1740010419606,1.68279736,650.94,649.55,0.30790547]
[1740010419806,1.37554462,650.93,649.55,0.30790547]
[1740010420006,1.37554462,650.92,649.55,0.30790547]
[1740010420207,1.37554462,650.91,649.55,0.30790547]
[1740010420404,1.40032312,650.9,649.55,0.30790547]
[1740010420606,1.40032784,650.89,649.55,0.30790547]
[1740010420801,1.40033256,650.88,649.55,0.30790547]
[1740010421005,1.40033728,650.87,649.55,0.30790547]
[1740010421208,1.400342,650.86,649.55,0.30790547]
[1740010421407,1.40034672,650.85,649.55,0.30790547]
[1740010421602,1.40035144,650.84,649.55,0.30790547]
[1740010421806,1.09305626,650.83,649.55,0.30790547]
[1740010422006,1.09305626,650.82,649.55,0.30790547]
[1740010422307,1.09305626,650.81,649.55,0.30790547]
[1740010422607,1.09305626,650.8,649.55,0.30790547]
[1740010422807,1.09305626,650.79,649.55,0.30790547]
[1740010423002,0.30729518,650.84,649.55,0.30790547]
[1740010423003,1.09305626,650.78,649.55,0.30790547]
[1740010423207,0.30729518,650.84,649.55,0.30790547]
[1740010423208,1.09305626,650.77,649.55,0.30790547]
[1740010423410,1.09305626,650.76,649.55,0.30790547]
[1740010423606,0.30729518,650.84,649.55,0.30790547]
[1740010423607,1.09305626,650.75,649.55,0.30790547]
[1740010423811,1.09305626,650.74,649.55,0.30790547]
[1740010424112,0.30729518,650.84,649.55,0.30790547]
[1740010424313,1.09110986,650.83,649.55,0.30790547]
[1740010424508,0.30729518,650.84,649.55,0.30790547]
[1740010424509,1.09110986,650.82,649.55,0.30790547]
[1740010424813,1.09110986,650.81,649.55,0.30790547]
[1740010425007,1.09110986,650.8,649.55,0.30790547]
[1740010425210,1.09110986,650.79,649.55,0.30790547]
[1740010425409,1.09110986,650.78,649.55,0.30790547]
[1740010425612,1.09110986,650.77,649.55,0.30790547]
[1740010425913,1.09110986,650.76,649.55,0.30790547]
[1740010426114,1.09110986,650.75,649.55,0.30790547]
[1740010426413,1.09110986,650.74,649.55,0.30790547]
[1740010426613,1.09110986,650.73,649.55,0.30790547]
[1740010426814,0.30729518,650.84,649.55,0.30790547]
[1740010427013,1.09104947,650.83,649.55,0.30790547]
[1740010427214,1.09103586,650.82,649.55,0.30790547]
[1740010427414,1.09103586,650.81,649.55,0.30790547]
[1740010427614,1.09103586,650.8,649.55,0.30790547]
[1740010427815,1.09103586,650.79,649.55,0.30790547]
[1740010428012,0.30729518,650.84,649.55,0.30790547]
[1740010428208,1.09114558,650.83,649.55,0.30790547]
[1740010428409,1.09114558,650.82,649.55,0.30790547]
[1740010428613,1.09114558,650.81,649.55,0.30790547]
[1740010428813,1.09114558,650.8,649.55,0.30790547]
[1740010429014,1.09114558,650.79,649.55,0.30790547]
[1740010429211,1.09114558,650.78,649.55,0.30790547]
[1740010429412,0.30729518,650.84,649.55,0.30790547]
[1740010429612,1.09179825,650.83,649.55,0.30790547]
[1740010429818,0.30729518,650.84,649.55,0.30790547]
[1740010430118,1.1326265,651.56,649.55,0.30790547]
[1740010430319,0.30696503,651.54,649.55,0.30790547]
[1740010430511,1.37399957,651.53,649.55,0.30790547]
[1740010430714,0.30697917,651.51,649.55,0.30790547]
[1740010430917,1.37399957,651.5,649.55,0.30790547]
[1740010431115,0.3069933,651.48,649.55,0.30790547]
[1740010431317,1.37399957,651.47,649.55,0.30790547]
[1740010431518,0.30700744,651.45,649.55,0.30790547]
[1740010431718,1.37399957,651.44,649.55,0.30790547]
[1740010431914,1.1326265,651.56,649.55,0.30790547]
[1740010431915,1.68101644,651.43,649.55,0.30790547]
[1740010432119,0.30702629,651.41,649.55,0.30790547]
[1740010432318,1.37399957,651.4,649.55,0.30790547]
[1740010432519,0.30704043,651.38,649.55,0.30790547]
[1740010432716,1.37399957,651.37,649.55,0.30790547]
[1740010432917,1.1326265,651.69,649.55,0.30790547]
[1740010432918,1.68104943,651.36,649.55,0.30790547]
[1740010433119,1.68105414,651.35,649.55,0.30790547]
[1740010433315,1.39865896,651.34,649.55,0.30790547]
[1740010433519,1.68106357,651.33,649.55,0.30790547]
[1740010433720,1.68106829,651.32,649.55,0.30790547]
[1740010433916,1.681073,651.31,649.55,0.30790547]
[1740010434121,1.68107772,651.3,649.55,0.30790547]
[1740010434421,1.37399957,651.29,649.55,0.30790547]
[1740010434617,1.09159967,651.28,649.55,0.30790547]
[1740010434815,1.37399542,651.27,649.55,0.30790547]
[1740010435020,1.68109243,651.26,649.55,0.30790547]
[1740010435216,1.09159967,651.25,649.55,0.30790547]
[1740010435423,1.09159967,651.24,649.55,0.30790547]
[1740010435618,1.09159967,651.23,649.55,0.30790547]
[1740010435819,1.09159967,651.22,649.55,0.30790547]
[1740010436021,1.39872026,651.21,649.55,0.30790547]
[1740010436218,1.39872497,651.2,649.55,0.30790547]
[1740010436418,1.09159967,651.19,649.55,0.30790547]
[1740010436624,1.09159967,651.18,649.55,0.30790547]
[1740010436823,1.09159967,651.17,649.55,0.30790547]
[1740010437017,1.09159967,651.16,649.55,0.30790547]
[1740010437217,1.09159967,651.15,649.55,0.30790547]
[1740010437421,1.09159967,651.14,649.55,0.30790547]
[1740010437618,1.09159967,651.13,649.55,0.30790547]
[1740010437824,1.09159967,651.12,649.55,0.30790547]
[1740010438023,0.3071253,651.2,649.55,0.30790547]
[1740010438024,1.09159967,651.11,649.55,0.30790547]
[1740010438318,1.09159967,651.1,649.55,0.30790547]
[1740010438523,1.09159967,651.09,649.55,0.30790547]
[1740010438724,1.09159967,651.08,649.55,0.30790547]
[1740010438924,1.09159967,651.07,649.55,0.30790547]
[1740010439225,1.09159967,651.06,649.55,0.30790547]
[1740010439421,1.09159967,651.05,649.55,0.30790547]
[1740010439621,1.09159967,651.04,649.55,0.30790547]
[1740010439918,1.09159967,651.03,649.55,0.30790547]
[1740010440122,1.09159967,651.02,649.55,0.30790547]
[1740010440422,1.09159967,651.01,649.55,0.30790547]
[1740010440621,1.09159967,651.0,649.55,0.30790547]
[1740010440822,1.09159967,650.99,649.55,0.30790547]
[1740010441022,1.09159967,650.98,649.55,0.30790547]
[1740010441222,1.09159967,650.97,649.55,0.30790547]
[1740010441416,1.09159967,650.96,649.55,0.30790547]
[1740010441621,1.09159967,650.95,649.55,0.30790547]
[1740010441923,0.3071253,651.2,649.55,0.30790547]
[1740010441924,1.09159967,650.94,649.55,0.30790547]
[1740010442223,1.09159967,650.93,649.55,0.30790547]
[1740010442422,1.09159967,650.92,649.55,0.30790547]
[1740010442624,0.3071253,651.2,649.55,0.30790547]
[1740010442819,1.09374824,651.19,649.55,0.30790547]
[1740010443019,1.09374824,651.18,649.55,0.30790547]
[1740010443222,1.09374824,651.17,649.55,0.30790547]
[1740010443418,1.09374824,651.16,649.55,0.30790547]
[1740010443624,1.09374824,651.15,649.55,0.30790547]
[1740010443827,1.37614177,651.14,649.55,0.30790547]
[1740010444120,1.37614177,651.13,649.55,0.30790547]
[1740010444329,1.37614177,651.12,649.55,0.30790547]
[1740010444625,1.37614177,651.11,649.55,0.30790547]
[1740010444924,1.37614177,651.1,649.55,0.30790547]
[1740010445119,1.37614177,651.09,649.55,0.30790547]
[1740010445320,1.37614177,651.08,649.55,0.30790547]
[1740010445519,1.37614177,651.07,649.55,0.30790547]
[1740010445719,1.37614177,651.06,649.55,0.30790547]
[1740010445926,1.37614177,651.05,649.55,0.30790547]
[1740010446125,1.37614177,651.04,649.55,0.30790547]
[1740010446320,1.37614177,651.03,649.55,0.30790547]
[1740010446519,1.37614177,651.02,649.55,0.30790547]
[1740010446720,1.37614177,651.01,649.55,0.30790547]
[1740010446920,1.37614177,651.0,649.55,0.30790547]
[1740010447120,1.37614177,650.99,649.55,0.30790547]
[1740010447318,1.09374824,650.98,649.55,0.30790547]
[1740010447524,1.09374824,650.97,649.55,0.30790547]
[1740010447720,1.09374824,650.96,649.55,0.30790547]
[1740010448025,1.09374824,650.95,649.55,0.30790547]
[1740010448325,1.09374824,650.94,649.55,0.30790547]
[1740010448522,1.09374824,650.93,649.55,0.30790547]
[1740010448825,1.09374824,650.92,649.55,0.30790547]
[1740010449026,1.09374824,650.91,649.55,0.30790547]
[1740010449227,1.09374824,650.9,649.55,0.30790547]
[1740010449423,1.09374824,650.89,649.55,0.30790547]
[1740010449722,1.09374824,650.88,649.55,0.30790547]
[1740010449928,1.09374824,650.87,649.55,0.30790547]
[1740010450226,1.09374824,650.86,649.55,0.30790547]
[1740010450426,1.09374824,650.85,649.55,0.30790547]
[1740010450620,1.09374824,650.84,649.55,0.30790547]
[1740010450821,0.3071253,651.2,649.55,0.30790547]
[1740010451024,1.37683652,651.19,649.55,0.30790547]
[1740010451227,1.37683652,651.18,649.55,0.30790547]
[1740010451425,1.37683652,651.17,649.55,0.30790547]
[1740010451621,1.37683652,651.16,649.55,0.30790547]
[1740010451826,1.09442641,651.15,649.55,0.30790547]
[1740010452026,1.09442641,651.14,649.55,0.30790547]
[1740010452327,1.09442641,651.13,649.55,0.30790547]
[1740010452527,1.09442641,651.12,649.55,0.30790547]
[1740010452729,1.09442641,651.11,649.55,0.30790547]
[1740010452931,1.09442641,651.1,649.55,0.30790547]
[1740010453226,0.3071253,651.2,649.55,0.30790547]
[1740010453227,1.09442641,651.09,649.55,0.30790547]
[1740010453428,1.09442641,651.08,649.55,0.30790547]
[1740010453623,1.09442641,651.07,649.55,0.30790547]
[1740010453827,1.09442641,651.19,649.55,0.30790547]
[1740010454028,1.09442641,651.18,649.55,0.30790547]
[1740010454229,1.09442641,651.17,649.55,0.30790547]
[1740010454529,0.3071253,651.2,649.55,0.30790547]
[1740010454530,1.09442641,651.16,649.55,0.30790547]
[1740010454730,1.37678756,651.15,649.55,0.30790547]
[1740010454929,1.09442641,651.14,649.55,0.30790547]
[1740010455228,1.09442641,651.13,649.55,0.30790547]
[1740010455428,1.09442641,651.12,649.55,0.30790547]
[1740010455630,1.09442641,651.11,649.55,0.30790547]
[1740010455931,1.09442641,651.1,649.55,0.30790547]
[1740010456133,1.09442641,651.09,649.55,0.30790547]
[1740010456432,1.09442641,651.08,649.55,0.30790547]
[1740010456629,1.09442641,651.07,649.55,0.30790547]
[1740010456829,0.3071253,651.2,649.55,0.30790547]
[1740010456830,1.09442641,651.06,649.55,0.30790547]
[1740010457028,1.09442641,651.05,649.55,0.30790547]
[1740010457332,1.09442641,651.04,649.55,0.30790547]
[1740010457532,1.09442641,651.03,649.55,0.30790547]
[1740010457734,1.09442641,651.02,649.55,0.30790547]
[1740010457927,1.09442641,651.01,649.55,0.30790547]
[1740010458130,1.09442641,651.0,649.55,0.30790547]
[1740010458328,1.09442641,650.99,649.55,0.30790547]
[1740010458627,0.3071253,651.2,649.55,0.30790547]
[1740010458628,1.09442641,650.98,649.55,0.30790547]
[1740010458832,1.09442641,650.97,649.55,3.2890205]
[1740010459041,0.3071253,651.2,649.55,3.2890205]
[1740010459233,1.37881286,651.19,649.55,3.2890205]
[1740010459434,1.37881286,651.18,649.55,3.2890205]
[1740010459634,1.09646462,651.17,649.55,3.2890205]
[1740010459834,1.09646462,651.16,649.55,3.2890205]
[1740010460035,1.09646462,651.15,649.55,3.2890205]
[1740010460334,0.3071253,651.2,649.55,3.2890205]
[1740010460335,1.09646462,651.14,649.55,0.30790547]
[1740010460535,1.09646462,651.13,649.55,0.30790547]
[1740010460736,1.09646462,651.12,649.55,0.30790547]
[1740010460938,1.09646462,651.11,649.55,0.30790547]
[1740010461237,1.09697237,651.1,649.55,0.30790547]
[1740010461532,1.09697237,651.09,649.55,0.30790547]
[1740010461732,1.09697237,651.08,649.55,0.30790547]
[1740010461936,1.09697237,651.07,649.55,0.30790547]
[1740010462133,1.09697237,651.06,649.55,0.30790547]
[1740010462335,1.09697237,651.05,649.55,3.29115102]
[1740010462536,1.09728744,651.04,649.55,3.29115102]
[1740010462731,1.09728744,651.03,649.55,3.29115102]
[1740010462935,1.09728744,651.02,649.55,3.29115102]
[1740010463134,1.09728744,651.01,649.55,3.29115102]
[1740010463336,1.09722983,651.0,649.55,3.29115102]
[1740010463637,1.09722983,650.99,649.55,3.29115102]
[1740010463832,1.0973502,650.98,649.55,3.29115102]
[1740010464037,1.0973502,650.97,649.55,3.29115102]
[1740010464236,0.3071253,651.2,649.55,3.29115102]
[1740010464435,1.09735557,651.19,649.55,3.29115102]
[1740010464636,1.09735557,651.18,649.55,3.29115102]
[1740010464938,1.09735557,651.17,649.55,3.29115102]
[1740010465136,1.09735557,651.16,649.55,3.29115102]
[1740010465337,1.09735557,651.15,649.55,3.29115102]
[1740010465635,1.09735557,651.14,649.55,3.29115102]
[1740010465831,1.09735557,651.13,649.55,3.29115102]
[1740010466032,1.09735557,651.12,649.55,3.29115102]
[1740010466233,1.09735557,651.11,649.55,3.29115102]
[1740010466439,1.09776627,651.1,649.55,3.29115102]
[1740010466642,1.09776627,651.09,649.55,3.29115102]
[1740010466838,1.09776627,651.08,649.55,3.29115102]